[Event "Titled Tuesday Blitz January 11 2022"]
[White "Avila Pavas, Santiago"]
[Black "Safarli, Eltaj"]
[WhiteFideId "4437128"]
[BlackFideId "13402129"]
[WhiteElo "2242"]
[BlackElo "2634"]
[Result "1/2-1/2"]
[Round "03"]
[TimeControl "180+1"]
[Date "2022.01.11"]
[WhiteClock "0:00:09"]
[BlackClock "0:00:32"]

1. d4 {[%clk 0:03:00]}  Nf6 {[%clk 0:02:57]} 2. Nf3 {[%clk 0:03:01]}  g6 {[%clk 0:02:56]} 3. Bg5 {[%clk 0:03:01]}  Bg7 {[%clk 0:02:56]} 4. Nbd2 {[%clk 0:03:01]}  O-O {[%clk 0:02:57]} 5. e4 {[%clk 0:03:02]}  d5 {[%clk 0:02:57]} 6. exd5 {[%clk 0:03:02]}  Nxd5 {[%clk 0:02:57]} 7. c3 {[%clk 0:03:02]}  b6 {[%clk 0:02:55]} 8. Bc4 {[%clk 0:03:02]}  Bb7 {[%clk 0:02:55]} 9. Qe2 {[%clk 0:03:02]}  h6 {[%clk 0:02:53]} 10. Be3 {[%clk 0:02:54]}  Nd7 {[%clk 0:02:53]} 11. O-O-O {[%clk 0:02:51]}  c5 {[%clk 0:02:44]} 12. dxc5 {[%clk 0:02:10]}  Qc7 {[%clk 0:02:42]} 13. Nb3 {[%clk 0:01:59]}  e6 {[%clk 0:02:36]} 14. Bd4 {[%clk 0:01:52]}  bxc5 {[%clk 0:02:11]} 15. Bxg7 {[%clk 0:01:52]}  Kxg7 {[%clk 0:02:12]} 16. Rhe1 {[%clk 0:01:32]}  a5 {[%clk 0:02:10]} 17. Bxd5 {[%clk 0:01:15]}  Bxd5 {[%clk 0:02:09]} 18. c4 {[%clk 0:01:15]}  Bxf3 {[%clk 0:02:03]} 19. Qxf3 {[%clk 0:01:14]}  a4 {[%clk 0:02:04]} 20. Qc3+ {[%clk 0:01:13]}  Nf6 {[%clk 0:01:44]} 21. Nd2 {[%clk 0:01:08]}  a3 {[%clk 0:01:44]} 22. Ne4 {[%clk 0:00:55]}  Qf4+ {[%clk 0:01:43]} 23. Kb1 {[%clk 0:00:50]}  axb2 {[%clk 0:01:39]} 24. Rd3 {[%clk 0:00:50]}  e5 {[%clk 0:01:37]} 25. Nxf6 {[%clk 0:00:32]}  Qxf6 {[%clk 0:01:37]} 26. Qxe5 {[%clk 0:00:32]}  Ra4 {[%clk 0:01:31]} 27. Qxf6+ {[%clk 0:00:27]}  Kxf6 {[%clk 0:01:32]} 28. Kxb2 {[%clk 0:00:27]}  Rfa8 {[%clk 0:01:32]} 29. a3 {[%clk 0:00:27]}  Rxc4 {[%clk 0:01:33]} 30. Kb3 {[%clk 0:00:22]}  Rca4 {[%clk 0:01:31]} 31. Ka2 {[%clk 0:00:23]}  Rc4 {[%clk 0:01:24]} 32. Kb3 {[%clk 0:00:22]}  Rf4 {[%clk 0:01:24]} 33. Rf3 {[%clk 0:00:18]}  Rxf3+ {[%clk 0:01:20]} 34. gxf3 {[%clk 0:00:19]}  Kf5 {[%clk 0:01:21]} 35. Rc1 {[%clk 0:00:19]}  Ra5 {[%clk 0:01:21]} 36. a4 {[%clk 0:00:18]}  Kf4 {[%clk 0:01:21]} 37. Rc3 {[%clk 0:00:18]}  g5 {[%clk 0:01:20]} 38. Ka3 {[%clk 0:00:14]}  h5 {[%clk 0:01:21]} 39. Rb3 {[%clk 0:00:14]}  Ra6 {[%clk 0:01:12]} 40. Rc3 {[%clk 0:00:13]}  f6 {[%clk 0:01:08]} 41. Rxc5 {[%clk 0:00:07]}  Kxf3 {[%clk 0:01:06]} 42. Kb4 {[%clk 0:00:07]}  Kg2 {[%clk 0:01:01]} 43. Kb5 {[%clk 0:00:07]}  Ra8 {[%clk 0:01:01]} 44. Rf5 {[%clk 0:00:06]}  Rf8 {[%clk 0:00:55]} 45. f4 {[%clk 0:00:06]}  Rg8 {[%clk 0:00:43]} 46. fxg5 {[%clk 0:00:06]}  fxg5 {[%clk 0:00:43]} 47. h4 {[%clk 0:00:07]}  gxh4 {[%clk 0:00:38]} 48. Rxh5 {[%clk 0:00:07]}  h3 {[%clk 0:00:39]} 49. a5 {[%clk 0:00:06]}  h2 {[%clk 0:00:39]} 50. Kb6 {[%clk 0:00:07]}  Rg6+ {[%clk 0:00:36]} 51. Kb7 {[%clk 0:00:07]}  Rg7+ {[%clk 0:00:36]} 52. Kb6 {[%clk 0:00:07]}  Rg6+ {[%clk 0:00:32]} 53. Kb5 {[%clk 0:00:07]}  Rg3 {[%clk 0:00:33]} 54. Rxh2+ {[%clk 0:00:06]}  Kxh2 {[%clk 0:00:34]} 55. a6 {[%clk 0:00:07]}  Rb3+ {[%clk 0:00:34]} 56. Kc6 {[%clk 0:00:07]}  Ra3 {[%clk 0:00:34]} 57. Kb7 {[%clk 0:00:07]}  Kg3 {[%clk 0:00:32]} 58. a7 {[%clk 0:00:08]}  Kf4 {[%clk 0:00:32]} 59. a8=Q {[%clk 0:00:08]}  Rxa8 {[%clk 0:00:32]} 60. Kxa8 {[%clk 0:00:09]} 1/2-1/2


[Site "https://www.chess.com"]

[Event "Titled Tuesday Blitz January 11 2022"]
[White "Ceres, Dragos"]
[Black "Khanin, Semen"]
[WhiteFideId "13905864"]
[BlackFideId "4111990"]
[WhiteElo "2072"]
[BlackElo "2442"]
[Result "0-1"]
[Round "03"]
[TimeControl "180+1"]
[Date "2022.01.11"]
[WhiteClock "0:00:08"]
[BlackClock "0:00:50"]

1. e4 {[%clk 0:03:00]}  c5 {[%clk 0:02:59]} 2. Nf3 {[%clk 0:03:01]}  e6 {[%clk 0:02:59]} 3. c3 {[%clk 0:03:00]}  d5 {[%clk 0:02:57]} 4. exd5 {[%clk 0:03:01]}  Qxd5 {[%clk 0:02:57]} 5. d4 {[%clk 0:03:01]}  Nf6 {[%clk 0:02:57]} 6. Be3 {[%clk 0:03:02]}  cxd4 {[%clk 0:02:55]} 7. cxd4 {[%clk 0:03:03]}  Nc6 {[%clk 0:02:55]} 8. Nc3 {[%clk 0:03:03]}  Qd6 {[%clk 0:02:56]} 9. Bd3 {[%clk 0:03:03]}  Be7 {[%clk 0:02:56]} 10. a3 {[%clk 0:03:02]}  O-O {[%clk 0:02:55]} 11. O-O {[%clk 0:03:02]}  a6 {[%clk 0:02:55]} 12. Qe2 {[%clk 0:03:00]}  b5 {[%clk 0:02:54]} 13. Rad1 {[%clk 0:02:43]}  Bb7 {[%clk 0:02:53]} 14. Bg5 {[%clk 0:02:34]}  h6 {[%clk 0:02:46]} 15. Ne4 {[%clk 0:01:56]}  Nxe4 {[%clk 0:02:45]} 16. Qxe4 {[%clk 0:01:57]}  f5 {[%clk 0:02:40]} 17. Bxe7 {[%clk 0:01:55]}  Qxe7 {[%clk 0:02:37]} 18. Qe3 {[%clk 0:01:49]}  Qd6 {[%clk 0:02:37]} 19. Rfe1 {[%clk 0:01:39]}  Rf6 {[%clk 0:02:35]} 20. Bb1 {[%clk 0:01:37]}  Ne7 {[%clk 0:02:31]} 21. Ba2 {[%clk 0:01:33]}  Bd5 {[%clk 0:02:30]} 22. Bxd5 {[%clk 0:01:17]}  Nxd5 {[%clk 0:02:30]} 23. Qe5 {[%clk 0:01:17]}  Rd8 {[%clk 0:02:30]} 24. Qxd6 {[%clk 0:01:13]}  Rxd6 {[%clk 0:02:31]} 25. Rc1 {[%clk 0:01:13]}  Rf8 {[%clk 0:02:32]} 26. g3 {[%clk 0:01:09]}  Rfd8 {[%clk 0:02:28]} 27. Rc5 {[%clk 0:01:04]}  Nf6 {[%clk 0:02:15]} 28. Rc7 {[%clk 0:01:03]}  Ne4 {[%clk 0:02:15]} 29. Rec1 {[%clk 0:00:59]}  Ng5 {[%clk 0:02:09]} 30. Nxg5 {[%clk 0:00:51]}  hxg5 {[%clk 0:02:09]} 31. R1c6 {[%clk 0:00:50]}  g4 {[%clk 0:02:03]} 32. Kf1 {[%clk 0:00:44]}  a5 {[%clk 0:01:56]} 33. Rxd6 {[%clk 0:00:39]}  Rxd6 {[%clk 0:01:56]} 34. Rc5 {[%clk 0:00:40]}  Rxd4 {[%clk 0:01:49]} 35. Rxb5 {[%clk 0:00:40]}  a4 {[%clk 0:01:50]} 36. Rb4 {[%clk 0:00:36]}  Rxb4 {[%clk 0:01:38]} 37. axb4 {[%clk 0:00:35]}  Kf8 {[%clk 0:01:38]} 38. Ke2 {[%clk 0:00:34]}  Ke7 {[%clk 0:01:39]} 39. Kd3 {[%clk 0:00:34]}  Kd6 {[%clk 0:01:33]} 40. Kc4 {[%clk 0:00:31]}  e5 {[%clk 0:01:33]} 41. b5 {[%clk 0:00:27]}  e4 {[%clk 0:01:11]} 42. Kd4 {[%clk 0:00:16]}  g6 {[%clk 0:01:07]} 43. Kc4 {[%clk 0:00:13]}  Kc7 {[%clk 0:00:58]} 44. Kb4 {[%clk 0:00:11]}  g5 {[%clk 0:00:51]} 45. Kc4 {[%clk 0:00:07]}  Kb6 {[%clk 0:00:51]} 46. Kd5 {[%clk 0:00:06]}  Kxb5 {[%clk 0:00:52]} 47. Ke5 {[%clk 0:00:06]}  Kb4 {[%clk 0:00:51]} 48. Kxf5 {[%clk 0:00:06]}  Kb3 {[%clk 0:00:52]} 49. Kxe4 {[%clk 0:00:04]}  Kxb2 {[%clk 0:00:52]} 50. Kf5 {[%clk 0:00:05]}  a3 {[%clk 0:00:52]} 51. Kxg5 {[%clk 0:00:06]}  a2 {[%clk 0:00:52]} 52. Kxg4 {[%clk 0:00:07]}  a1=Q {[%clk 0:00:51]} 53. f4 {[%clk 0:00:08]}  Kc3 {[%clk 0:00:51]} 54. h4 {[%clk 0:00:07]}  Kd4 {[%clk 0:00:50]} 55. Kh5 {[%clk 0:00:08]}  Kd5 {[%clk 0:00:50]} 0-1


[Site "https://www.chess.com"]

[Event "Titled Tuesday Blitz January 11 2022"]
[White "Concio, Michael Jr."]
[Black "Kevlishvili, Robby"]
[WhiteFideId "5217873"]
[BlackFideId "1040634"]
[WhiteElo "1896"]
[BlackElo "2584"]
[Result "0-1"]
[Round "03"]
[TimeControl "180+1"]
[Date "2022.01.11"]
[WhiteClock "0:00:01"]
[BlackClock "0:00:08"]

1. e4 {[%clk 0:03:00]}  c5 {[%clk 0:02:59]} 2. Ne2 {[%clk 0:03:01]}  Nf6 {[%clk 0:02:58]} 3. Nbc3 {[%clk 0:02:58]}  d6 {[%clk 0:02:58]} 4. g3 {[%clk 0:02:58]}  Nc6 {[%clk 0:02:56]} 5. Bg2 {[%clk 0:02:58]}  g6 {[%clk 0:02:56]} 6. O-O {[%clk 0:02:58]}  Bg7 {[%clk 0:02:56]} 7. d3 {[%clk 0:02:58]}  O-O {[%clk 0:02:56]} 8. h3 {[%clk 0:02:57]}  Rb8 {[%clk 0:02:54]} 9. Be3 {[%clk 0:02:56]}  b5 {[%clk 0:02:50]} 10. a3 {[%clk 0:02:55]}  a5 {[%clk 0:02:50]} 11. Qd2 {[%clk 0:02:50]}  b4 {[%clk 0:02:48]} 12. axb4 {[%clk 0:02:51]}  axb4 {[%clk 0:02:48]} 13. Nd5 {[%clk 0:01:57]}  Nxd5 {[%clk 0:02:34]} 14. exd5 {[%clk 0:01:58]}  Ne5 {[%clk 0:02:34]} 15. Kh2 {[%clk 0:01:59]}  b3 {[%clk 0:02:17]} 16. c4 {[%clk 0:01:42]}  Bf5 {[%clk 0:02:11]} 17. Nc1 {[%clk 0:01:26]}  h5 {[%clk 0:01:59]} 18. f4 {[%clk 0:01:22]}  Nd7 {[%clk 0:01:59]} 19. Be4 {[%clk 0:01:20]}  e6 {[%clk 0:01:51]} 20. Bxf5 {[%clk 0:01:18]}  exf5 {[%clk 0:01:51]} 21. Ne2 {[%clk 0:01:08]}  Re8 {[%clk 0:01:48]} 22. Bf2 {[%clk 0:01:06]}  Qf6 {[%clk 0:01:38]} 23. Nc3 {[%clk 0:01:04]}  h4 {[%clk 0:01:31]} 24. gxh4 {[%clk 0:00:58]}  Bh6 {[%clk 0:01:29]} 25. Rae1 {[%clk 0:00:56]}  Kh7 {[%clk 0:01:19]} 26. Nb5 {[%clk 0:00:53]}  Rxe1 {[%clk 0:01:07]} 27. Rxe1 {[%clk 0:00:48]}  Nb6 {[%clk 0:01:07]} 28. Bg3 {[%clk 0:00:40]}  Na4 {[%clk 0:01:04]} 29. Re2 {[%clk 0:00:40]}  Bg7 {[%clk 0:01:00]} 30. Qd1 {[%clk 0:00:34]}  Nb6 {[%clk 0:00:29]} 31. Qxb3 {[%clk 0:00:33]}  Ra8 {[%clk 0:00:29]} 32. Qc3 {[%clk 0:00:30]}  Qd8 {[%clk 0:00:28]} 33. Qe1 {[%clk 0:00:30]}  Ra2 {[%clk 0:00:26]} 34. b3 {[%clk 0:00:24]}  Ra1 {[%clk 0:00:24]} 35. Qf2 {[%clk 0:00:17]}  Nd7 {[%clk 0:00:24]} 36. Nxd6 {[%clk 0:00:16]}  Bd4 {[%clk 0:00:20]} 37. Qf3 {[%clk 0:00:17]}  Qa5 {[%clk 0:00:17]} 38. Bf2 {[%clk 0:00:15]}  Bxf2 {[%clk 0:00:17]} 39. Qxf2 {[%clk 0:00:16]}  Qc3 {[%clk 0:00:16]} 40. Nxf7 {[%clk 0:00:16]}  Qc1 {[%clk 0:00:16]} 41. Ng5+ {[%clk 0:00:17]}  Kg8 {[%clk 0:00:15]} 42. Kg3 {[%clk 0:00:11]}  Nf6 {[%clk 0:00:14]} 43. Qe3 {[%clk 0:00:07]}  Nh5+ {[%clk 0:00:14]} 44. Kf3 {[%clk 0:00:06]}  Qh1+ {[%clk 0:00:13]} 45. Rg2 {[%clk 0:00:04]}  Rf1+ {[%clk 0:00:13]} 46. Qf2 {[%clk 0:00:04]}  Rxf2+ {[%clk 0:00:13]} 47. Kxf2 {[%clk 0:00:05]}  Nxf4 {[%clk 0:00:14]} 48. Rg3 {[%clk 0:00:05]}  Qd1 {[%clk 0:00:13]} 49. Ke3 {[%clk 0:00:02]}  Qc1+ {[%clk 0:00:09]} 50. Kf2 {[%clk 0:00:02]}  Qd2+ {[%clk 0:00:10]} 51. Kf1 {[%clk 0:00:02]}  Qe2+ {[%clk 0:00:07]} 52. Kg1 {[%clk 0:00:03]}  Qe1+ {[%clk 0:00:07]} 53. Kh2 {[%clk 0:00:01]}  Qf2+ {[%clk 0:00:08]} 0-1


[Site "https://www.chess.com"]

[Event "Titled Tuesday Blitz January 11 2022"]
[White "Dastan, Muhammed Batuhan"]
[Black "Aradhya, Garg"]
[WhiteFideId "6300014"]
[BlackFideId "25006746"]
[WhiteElo "2410"]
[BlackElo "2169"]
[Result "0-1"]
[Round "03"]
[TimeControl "180+1"]
[Date "2022.01.11"]
[WhiteClock "0:00:21"]
[BlackClock "0:00:59"]

1. d4 {[%clk 0:03:00]}  d5 {[%clk 0:02:57]} 2. c4 {[%clk 0:03:00]}  c6 {[%clk 0:02:58]} 3. cxd5 {[%clk 0:03:00]}  cxd5 {[%clk 0:02:58]} 4. Bf4 {[%clk 0:03:00]}  Nc6 {[%clk 0:02:56]} 5. e3 {[%clk 0:03:00]}  Bf5 {[%clk 0:02:57]} 6. Qb3 {[%clk 0:02:59]}  Qd7 {[%clk 0:02:54]} 7. Nc3 {[%clk 0:02:54]}  e6 {[%clk 0:02:54]} 8. Bb5 {[%clk 0:02:53]}  Bd6 {[%clk 0:02:51]} 9. Bxd6 {[%clk 0:02:41]}  Qxd6 {[%clk 0:02:52]} 10. Rc1 {[%clk 0:02:22]}  Nf6 {[%clk 0:02:39]} 11. Nf3 {[%clk 0:02:18]}  O-O {[%clk 0:02:38]} 12. O-O {[%clk 0:02:16]}  Rfc8 {[%clk 0:02:38]} 13. Nh4 {[%clk 0:01:22]}  Bg4 {[%clk 0:02:30]} 14. h3 {[%clk 0:01:16]}  Bh5 {[%clk 0:02:29]} 15. g4 {[%clk 0:01:15]}  Bg6 {[%clk 0:02:29]} 16. Nxg6 {[%clk 0:01:14]}  hxg6 {[%clk 0:02:28]} 17. Be2 {[%clk 0:01:12]}  Qb4 {[%clk 0:02:19]} 18. Qxb4 {[%clk 0:01:10]}  Nxb4 {[%clk 0:02:20]} 19. a3 {[%clk 0:01:09]}  Nc6 {[%clk 0:02:20]} 20. f3 {[%clk 0:01:00]}  Ne8 {[%clk 0:02:19]} 21. Kf2 {[%clk 0:01:00]}  Nd6 {[%clk 0:02:19]} 22. Rc2 {[%clk 0:01:00]}  g5 {[%clk 0:02:18]} 23. Rfc1 {[%clk 0:01:00]}  Kf8 {[%clk 0:02:09]} 24. Nb5 {[%clk 0:01:00]}  Ke7 {[%clk 0:02:08]} 25. Kg3 {[%clk 0:00:57]}  Rh8 {[%clk 0:01:51]} 26. Nxd6 {[%clk 0:00:56]}  Kxd6 {[%clk 0:01:51]} 27. Bb5 {[%clk 0:00:57]}  Rac8 {[%clk 0:01:42]} 28. b4 {[%clk 0:00:54]}  Ne7 {[%clk 0:01:39]} 29. e4 {[%clk 0:00:28]}  dxe4 {[%clk 0:01:35]} 30. fxe4 {[%clk 0:00:29]}  e5 {[%clk 0:01:29]} 31. d5 {[%clk 0:00:30]}  Rxc2 {[%clk 0:01:29]} 32. Rxc2 {[%clk 0:00:31]}  Ng6 {[%clk 0:01:29]} 33. Bf1 {[%clk 0:00:31]}  Nf4 {[%clk 0:01:29]} 34. Rc3 {[%clk 0:00:31]}  Rxh3+ {[%clk 0:01:26]} 35. Bxh3 {[%clk 0:00:32]}  Ne2+ {[%clk 0:01:27]} 36. Kf2 {[%clk 0:00:32]}  Nxc3 {[%clk 0:01:27]} 37. Ke3 {[%clk 0:00:32]}  Nb1 {[%clk 0:01:03]} 38. a4 {[%clk 0:00:32]}  Nc3 {[%clk 0:01:04]} 39. a5 {[%clk 0:00:32]}  Na2 {[%clk 0:01:04]} 40. b5 {[%clk 0:00:29]}  Kc5 {[%clk 0:01:03]} 41. Bf1 {[%clk 0:00:29]}  Nc3 {[%clk 0:01:03]} 42. b6 {[%clk 0:00:25]}  axb6 {[%clk 0:01:01]} 43. a6 {[%clk 0:00:26]}  bxa6 {[%clk 0:01:01]} 44. Bxa6 {[%clk 0:00:27]}  Nb5 {[%clk 0:00:59]} 45. Kd3 {[%clk 0:00:26]}  Nd6 {[%clk 0:00:59]} 46. Ke3 {[%clk 0:00:22]}  b5 {[%clk 0:00:59]} 47. Kd3 {[%clk 0:00:21]}  Kb6 {[%clk 0:00:59]} 0-1


[Site "https://www.chess.com"]

[Event "Titled Tuesday Blitz January 11 2022"]
[White "Erdogdu, Mert"]
[Black "Guseinov, Gadir"]
[WhiteFideId "6301495"]
[BlackFideId "13401378"]
[WhiteElo "2485"]
[BlackElo "2581"]
[Result "0-1"]
[Round "03"]
[TimeControl "180+1"]
[Date "2022.01.11"]
[WhiteClock "0:00:12"]
[BlackClock "0:00:14"]

1. e4 {[%clk 0:03:00]}  c5 {[%clk 0:02:59]} 2. Nf3 {[%clk 0:03:01]}  g6 {[%clk 0:02:59]} 3. d4 {[%clk 0:03:01]}  cxd4 {[%clk 0:02:59]} 4. Qxd4 {[%clk 0:03:02]}  Nf6 {[%clk 0:02:59]} 5. Nc3 {[%clk 0:03:02]}  Nc6 {[%clk 0:02:59]} 6. Qa4 {[%clk 0:03:02]}  d6 {[%clk 0:03:00]} 7. e5 {[%clk 0:03:03]}  dxe5 {[%clk 0:03:00]} 8. Nxe5 {[%clk 0:03:03]}  Bd7 {[%clk 0:03:01]} 9. Nxd7 {[%clk 0:03:03]}  Qxd7 {[%clk 0:03:02]} 10. Be2 {[%clk 0:03:00]}  Bg7 {[%clk 0:03:02]} 11. Be3 {[%clk 0:03:01]}  O-O {[%clk 0:03:01]} 12. Rd1 {[%clk 0:03:01]}  Qf5 {[%clk 0:03:01]} 13. O-O {[%clk 0:02:44]}  a6 {[%clk 0:03:01]} 14. g4 {[%clk 0:02:38]}  Qc8 {[%clk 0:02:48]} 15. g5 {[%clk 0:02:34]}  Nd7 {[%clk 0:02:47]} 16. Qh4 {[%clk 0:02:16]}  b5 {[%clk 0:02:38]} 17. Bg4 {[%clk 0:02:00]}  e6 {[%clk 0:02:32]} 18. Ne4 {[%clk 0:01:56]}  Nce5 {[%clk 0:02:32]} 19. Be2 {[%clk 0:01:49]}  Qxc2 {[%clk 0:02:22]} 20. Rd2 {[%clk 0:01:50]}  Qc4 {[%clk 0:02:16]} 21. Bxc4 {[%clk 0:01:48]}  Nf3+ {[%clk 0:02:16]} 22. Kh1 {[%clk 0:01:47]}  Nxh4 {[%clk 0:02:17]} 23. Bxe6 {[%clk 0:01:36]}  Ne5 {[%clk 0:02:16]} 24. Bd5 {[%clk 0:01:30]}  Rad8 {[%clk 0:02:06]} 25. Nf6+ {[%clk 0:01:25]}  Kh8 {[%clk 0:01:57]} 26. Rfd1 {[%clk 0:01:17]}  h5 {[%clk 0:01:56]} 27. h3 {[%clk 0:01:03]}  Rc8 {[%clk 0:01:01]} 28. b3 {[%clk 0:00:58]}  b4 {[%clk 0:00:59]} 29. Bb7 {[%clk 0:00:51]}  Rc3 {[%clk 0:00:55]} 30. Rd8 {[%clk 0:00:46]}  Nf5 {[%clk 0:00:39]} 31. Bf4 {[%clk 0:00:42]}  Nc6 {[%clk 0:00:33]} 32. Rxf8+ {[%clk 0:00:36]}  Bxf8 {[%clk 0:00:32]} 33. Bxa6 {[%clk 0:00:34]}  Rxh3+ {[%clk 0:00:27]} 34. Kg2 {[%clk 0:00:33]}  Rc3 {[%clk 0:00:28]} 35. Bc4 {[%clk 0:00:27]}  Kg7 {[%clk 0:00:26]} 36. Rd7 {[%clk 0:00:20]}  Be7 {[%clk 0:00:25]} 37. Rc7 {[%clk 0:00:17]}  Ncd4 {[%clk 0:00:24]} 38. Be5 {[%clk 0:00:13]}  Nh4+ {[%clk 0:00:24]} 39. Kh2 {[%clk 0:00:09]}  Ndf3+ {[%clk 0:00:20]} 40. Kg3 {[%clk 0:00:10]}  Nxe5+ {[%clk 0:00:19]} 41. Kxh4 {[%clk 0:00:10]}  Bxf6 {[%clk 0:00:18]} 42. gxf6+ {[%clk 0:00:10]}  Kxf6 {[%clk 0:00:17]} 43. f4 {[%clk 0:00:10]}  Nxc4 {[%clk 0:00:14]} 44. Rxc4 {[%clk 0:00:10]}  Rxc4 {[%clk 0:00:13]} 45. bxc4 {[%clk 0:00:10]}  Ke6 {[%clk 0:00:14]} 46. Kg5 {[%clk 0:00:10]}  Kd6 {[%clk 0:00:14]} 47. f5 {[%clk 0:00:10]}  gxf5 {[%clk 0:00:13]} 48. Kxf5 {[%clk 0:00:10]}  Kc5 {[%clk 0:00:13]} 49. Kg5 {[%clk 0:00:11]}  Kxc4 {[%clk 0:00:14]} 50. Kxh5 {[%clk 0:00:11]}  Kc3 {[%clk 0:00:14]} 51. Kg5 {[%clk 0:00:12]} 0-1


[Site "https://www.chess.com"]

[Event "Titled Tuesday Blitz January 11 2022"]
[White "Erigaisi Arjun"]
[Black "Mokshanov, Alexey"]
[WhiteFideId "35009192"]
[BlackFideId "24121657"]
[WhiteElo "2745"]
[BlackElo "2141"]
[Result "1-0"]
[Round "03"]
[TimeControl "180+1"]
[Date "2022.01.11"]
[WhiteClock "0:01:53"]
[BlackClock "0:01:09"]

1. g3 {[%clk 0:03:00]}  d5 {[%clk 0:02:57]} 2. Nf3 {[%clk 0:03:00]}  Nf6 {[%clk 0:02:55]} 3. Bg2 {[%clk 0:03:00]}  e6 {[%clk 0:02:55]} 4. O-O {[%clk 0:03:00]}  Be7 {[%clk 0:02:56]} 5. d3 {[%clk 0:03:01]}  O-O {[%clk 0:02:57]} 6. Nbd2 {[%clk 0:03:02]}  c5 {[%clk 0:02:57]} 7. e4 {[%clk 0:03:02]}  Nc6 {[%clk 0:02:57]} 8. Re1 {[%clk 0:03:02]}  b5 {[%clk 0:02:58]} 9. e5 {[%clk 0:03:02]}  Nd7 {[%clk 0:02:58]} 10. Nf1 {[%clk 0:03:03]}  Qc7 {[%clk 0:02:58]} 11. Bf4 {[%clk 0:03:03]}  a5 {[%clk 0:02:57]} 12. h4 {[%clk 0:03:02]}  h6 {[%clk 0:02:57]} 13. Ne3 {[%clk 0:03:02]}  Bb7 {[%clk 0:02:53]} 14. Qd2 {[%clk 0:03:00]}  Rfc8 {[%clk 0:02:53]} 15. Ng4 {[%clk 0:02:55]}  Bf8 {[%clk 0:02:51]} 16. Bxh6 {[%clk 0:02:36]}  gxh6 {[%clk 0:02:38]} 17. Nxh6+ {[%clk 0:02:37]}  Bxh6 {[%clk 0:02:38]} 18. Qxh6 {[%clk 0:02:37]}  Ncxe5 {[%clk 0:02:33]} 19. Qg5+ {[%clk 0:02:35]}  Ng6 {[%clk 0:02:31]} 20. h5 {[%clk 0:02:36]}  Nf8 {[%clk 0:01:52]} 21. hxg6 {[%clk 0:02:34]}  fxg6 {[%clk 0:01:52]} 22. Ne5 {[%clk 0:02:24]}  Qd8 {[%clk 0:01:42]} 23. Qf4 {[%clk 0:02:13]}  Qe7 {[%clk 0:01:35]} 24. Ng4 {[%clk 0:02:08]}  Nd7 {[%clk 0:01:27]} 25. Qh6 {[%clk 0:02:00]}  Qf7 {[%clk 0:01:25]} 26. Ne5 {[%clk 0:01:57]}  Nxe5 {[%clk 0:01:24]} 27. Rxe5 {[%clk 0:01:58]}  Qg7 {[%clk 0:01:11]} 28. Qxg7+ {[%clk 0:01:53]}  Kxg7 {[%clk 0:01:11]} 29. Rxe6 {[%clk 0:01:54]}  Kf7 {[%clk 0:01:09]} 30. Rb6 {[%clk 0:01:53]} 1-0


[Site "https://www.chess.com"]

[Event "Titled Tuesday Blitz January 11 2022"]
[White "Fridman, Daniel"]
[Black "Maghsoodloo, Parham"]
[WhiteFideId "11600454"]
[BlackFideId "12539929"]
[WhiteElo "2514"]
[BlackElo "2630"]
[Result "1/2-1/2"]
[Round "03"]
[TimeControl "180+1"]
[Date "2022.01.11"]
[WhiteClock "0:00:12"]
[BlackClock "0:00:26"]

1. d4 {[%clk 0:03:00]}  Nf6 {[%clk 0:03:00]} 2. Nf3 {[%clk 0:03:00]}  e6 {[%clk 0:03:00]} 3. c4 {[%clk 0:02:59]}  d5 {[%clk 0:03:00]} 4. g3 {[%clk 0:02:59]}  Be7 {[%clk 0:03:01]} 5. Bg2 {[%clk 0:02:59]}  O-O {[%clk 0:03:01]} 6. Qc2 {[%clk 0:03:00]}  Nbd7 {[%clk 0:03:02]} 7. O-O {[%clk 0:02:59]}  c6 {[%clk 0:03:02]} 8. Rd1 {[%clk 0:02:58]}  b6 {[%clk 0:02:58]} 9. b3 {[%clk 0:02:58]}  Bb7 {[%clk 0:02:57]} 10. Nc3 {[%clk 0:02:58]}  Ba6 {[%clk 0:02:57]} 11. Nd2 {[%clk 0:02:53]}  Rc8 {[%clk 0:02:55]} 12. e4 {[%clk 0:02:52]}  c5 {[%clk 0:02:47]} 13. exd5 {[%clk 0:02:50]}  cxd4 {[%clk 0:02:43]} 14. Ne2 {[%clk 0:02:21]}  e5 {[%clk 0:02:37]} 15. Qf5 {[%clk 0:02:10]}  Re8 {[%clk 0:02:27]} 16. Ne4 {[%clk 0:02:07]}  Nxe4 {[%clk 0:02:27]} 17. Bxe4 {[%clk 0:02:00]}  g6 {[%clk 0:02:26]} 18. Qh3 {[%clk 0:02:00]}  f5 {[%clk 0:02:27]} 19. Bg2 {[%clk 0:01:53]}  Bf6 {[%clk 0:02:24]} 20. g4 {[%clk 0:01:46]}  f4 {[%clk 0:02:18]} 21. Rb1 {[%clk 0:01:33]}  b5 {[%clk 0:02:11]} 22. d6 {[%clk 0:01:32]}  bxc4 {[%clk 0:02:04]} 23. Bd5+ {[%clk 0:01:31]}  Kg7 {[%clk 0:02:04]} 24. bxc4 {[%clk 0:01:28]}  Nb6 {[%clk 0:02:04]} 25. Rxb6 {[%clk 0:01:22]}  axb6 {[%clk 0:01:51]} 26. g5 {[%clk 0:01:22]}  Bxg5 {[%clk 0:01:51]} 27. d7 {[%clk 0:01:22]}  Bxc4 {[%clk 0:01:44]} 28. dxc8=Q {[%clk 0:00:42]}  Qxc8 {[%clk 0:01:27]} 29. Qxc8 {[%clk 0:00:43]}  Rxc8 {[%clk 0:01:27]} 30. Bxc4 {[%clk 0:00:43]}  Rxc4 {[%clk 0:01:28]} 31. f3 {[%clk 0:00:44]}  Rc2 {[%clk 0:01:23]} 32. Rd2 {[%clk 0:00:44]}  Rxd2 {[%clk 0:01:19]} 33. Bxd2 {[%clk 0:00:45]}  Be7 {[%clk 0:01:17]} 34. Nc1 {[%clk 0:00:42]}  Kf6 {[%clk 0:01:17]} 35. Nd3 {[%clk 0:00:43]}  Kf5 {[%clk 0:01:18]} 36. Nf2 {[%clk 0:00:43]}  h5 {[%clk 0:01:18]} 37. Kf1 {[%clk 0:00:42]}  Bh4 {[%clk 0:01:16]} 38. Ne4 {[%clk 0:00:41]}  g5 {[%clk 0:01:16]} 39. h3 {[%clk 0:00:41]}  g4 {[%clk 0:01:17]} 40. hxg4+ {[%clk 0:00:41]}  hxg4 {[%clk 0:01:17]} 41. Kg2 {[%clk 0:00:41]}  d3 {[%clk 0:01:13]} 42. Nd6+ {[%clk 0:00:33]}  Ke6 {[%clk 0:01:12]} 43. Nc4 {[%clk 0:00:33]}  b5 {[%clk 0:00:59]} 44. Nb2 {[%clk 0:00:31]}  gxf3+ {[%clk 0:00:58]} 45. Kxf3 {[%clk 0:00:26]}  Kf5 {[%clk 0:00:59]} 46. Bxf4 {[%clk 0:00:17]}  e4+ {[%clk 0:00:41]} 47. Ke3 {[%clk 0:00:17]}  Bd8 {[%clk 0:00:35]} 48. Nxd3 {[%clk 0:00:14]}  Bb6+ {[%clk 0:00:35]} 49. Kd2 {[%clk 0:00:14]}  Ba5+ {[%clk 0:00:33]} 50. Ke3 {[%clk 0:00:11]}  exd3 {[%clk 0:00:33]} 51. Bh6 {[%clk 0:00:11]}  d2 {[%clk 0:00:23]} 52. Ke2 {[%clk 0:00:11]}  Ke4 {[%clk 0:00:24]} 53. Bxd2 {[%clk 0:00:12]}  Bxd2 {[%clk 0:00:25]} 54. Kxd2 {[%clk 0:00:12]}  Kd4 {[%clk 0:00:26]} 55. Kc2 {[%clk 0:00:12]}  Kc4 {[%clk 0:00:24]} 56. Kb2 {[%clk 0:00:13]}  b4 {[%clk 0:00:25]} 57. a3 {[%clk 0:00:13]}  bxa3+ {[%clk 0:00:26]} 58. Kxa3 {[%clk 0:00:12]} 1/2-1/2


[Site "https://www.chess.com"]